bitfinex-derivatives/quotes_SOLF0:USTF0_20250914
["timestamp","ask_amount","ask_price","bid_price","bid_amount"]
[1757817278527,14.12,247.12,247.0,6.65]
[1757817279238,21.36,247.12,247.0,6.65]
[1757817279434,1.29517124,247.1,247.0,6.65]
[1757817279737,8.23517124,247.1,247.0,6.65]
[1757817280433,6.94,247.1,247.0,6.65]
[1757817280629,6.94,247.1,246.99,11.85371528]
[1757817280833,6.94,247.1,246.94,6.65]
[1757817282430,6.94,247.17,246.95,6.65]
[1757817282635,6.94,247.17,246.98,6.65]
[1757817288737,6.94,247.15,246.98,6.65]
[1757817288938,29.12,247.15,246.98,6.65]
[1757817289344,34.94,247.15,246.98,6.65]
[1757817289643,6.94,247.15,246.98,6.65]
[1757817290745,45.74,247.15,246.98,6.65]
[1757817290944,6.94,247.15,246.98,6.65]
[1757817291344,6.42,247.2,246.98,6.65]
[1757817294443,6.42,247.2,246.99,6.92]
[1757817294643,6.42,247.2,247.01,6.92]
[1757817295241,18.62,247.2,247.01,6.92]
[1757817296044,6.42,247.25,247.01,6.92]
[1757817296244,6.42,247.23,247.01,6.92]
[1757817296645,102.06,247.22,247.01,6.92]
[1757817296845,6.42,247.21,247.01,6.92]
[1757817297847,15.74,247.2,247.01,6.92]
[1757817298049,7.03,247.19,247.01,6.92]
[1757817301649,14.71,247.19,247.01,6.92]
[1757817302554,7.03,247.18,246.96,6.39]
[1757817302750,7.03,247.13,246.96,6.39]
[1757817303255,7.03,247.11,246.96,6.39]
[1757817303456,7.03,247.11,246.94,12.19406566]
[1757817303457,7.03,247.1,246.94,12.19406566]
[1757817303751,7.03,247.11,246.92,6.39]
[1757817304649,38.98,247.1,246.92,6.39]
[1757817304852,7.03,247.09,246.92,6.39]
[1757817305154,77.69,247.09,246.92,6.39]
[1757817305947,81.10239624,247.09,246.92,6.39]
[1757817306151,81.10239624,247.09,246.87,4.43355286]
[1757817306347,7.03,247.07,246.88,6.39]
[1757817306750,33.84,247.06,246.88,6.39]
[1757817306948,7.03,247.05,246.88,6.39]
[1757817307249,7.03,247.02,246.86,11.98745603]
[1757817307452,7.03,247.02,246.83,6.39]
[1757817307955,12.12,247.06,246.78,6.65032929]
[1757817307956,7.03,246.97,246.79,4.43355286]
[1757817308163,7.03,246.97,246.8,12.42406457]
[1757817308461,7.03,246.97,246.78,6.39]
[1757817309152,7.03,246.95,246.78,6.39]
[1757817309659,17.04,246.94,246.78,6.39]
[1757817309958,7.03,246.93,246.78,6.39]
[1757817310160,7.03,246.91,246.71,6.39]
[1757817310755,7.03,246.85,246.68,12.28182706]
[1757817311054,7.03,246.83,246.66,6.39]
[1757817311860,7.03,246.83,246.67,6.39]
[1757817312063,7.03,246.83,246.68,6.39]
[1757817312565,21.61,246.88,246.69,6.39]
[1757817313563,7.03,246.86,246.69,6.39]
[1757817315764,84.38,246.85,246.69,6.39]
[1757817315964,3.41239624,246.88,246.69,6.39]
[1757817316264,3.41239624,246.88,246.63,4.11658597]
[1757817316265,7.03,246.86,246.63,7.09418973]
[1757817316466,3.41239624,246.82,246.63,7.09418973]
[1757817316767,7.03,246.81,246.63,7.09418973]
[1757817318466,7.03,246.75,246.58,6.39]
[1757817318665,7.03,246.73,246.58,6.39]
[1757817318867,7.03,246.72,246.58,6.39]
[1757817319464,7.03,246.7,246.54,6.39]
[1757817320561,10.44239624,246.7,246.54,6.39]
[1757817320758,22.56239624,246.7,246.49,6.39]
[1757817322171,7.03,246.68,246.49,6.39]
[1757817322365,7.03,246.63,246.49,6.39]
[1757817324369,7.03,246.63,246.44,6.39]
[1757817324865,7.58,246.62,246.44,6.39]
[1757817325274,14.62,246.61,246.45,6.39]
[1757817325575,7.03,246.6,246.45,6.39]
[1757817327576,7.03,246.66,246.47,6.89]
[1757817327870,7.03,246.66,246.48,6.89]
[1757817328874,9.5,246.65,246.48,6.89]
[1757817329174,6.63,246.67,246.48,6.89]
[1757817329372,17.68,246.66,246.48,6.89]
[1757817329570,6.63,246.67,246.48,6.89]
[1757817329772,30.69,246.67,246.48,6.89]
[1757817330473,31.8,246.66,246.48,6.89]
[1757817331773,6.63,246.65,246.48,6.89]
[1757817334075,6.63,246.62,246.48,6.89]
[1757817336376,14.83,246.67,246.48,2.17053537]
[1757817336675,14.83,246.67,246.49,6.89]
[1757817337076,6.63,246.67,246.49,6.89]
[1757817337980,27.85,246.67,246.49,6.89]
[1757817338870,30.02053537,246.67,246.49,6.89]
[1757817339874,42.14053537,246.67,246.49,6.89]
[1757817342581,20.92053537,246.67,246.49,6.89]
[1757817342781,32.24,246.66,246.49,6.89]
[1757817343079,6.63,246.65,246.49,6.89]
[1757817343680,38.98,246.64,246.49,6.89]
[1757817343879,2.17053537,246.62,246.49,6.89]
[1757817344077,51.03,246.61,246.49,6.89]
[1757817344482,0.83361286,246.55,246.49,6.89]
[1757817346885,0.83361286,246.55,246.44,18.75486306]
[1757817347080,0.83361286,246.55,246.44,6.89]
[1757817347477,0.83361286,246.55,246.44,18.87235472]
[1757817347681,0.83361286,246.55,246.44,6.89]
[1757817350086,7.46361286,246.49,246.44,6.89]
[1757817350390,0.83361286,246.49,246.4,6.89]
[1757817351285,103.12,246.53,246.4,6.89]
[1757817351485,0.83361286,246.54,246.42,6.89]
[1757817354991,0.83361286,246.54,246.42,7.72361286]
[1757817355186,0.83361286,246.54,246.42,6.89]
[1757817355690,6.66,246.55,246.42,6.89]
[1757817355691,0.83361286,246.51,246.42,6.89]
[1757817358086,6.66,246.55,246.42,6.89]
[1757817358292,0.83361286,246.52,246.42,6.89]
[1757817358586,6.66,246.55,246.42,6.89]
[1757817358587,6.66,246.55,246.42,7.72361286]
[1757817358792,7.49361286,246.55,246.42,7.72361286]
[1757817359393,272.4,246.61,246.49,6.47]
[1757817359394,7.80361286,246.6,246.49,6.47]
[1757817359893,6.97,246.56,246.49,6.47]
[1757817362293,0.83361286,246.54,246.43,4.43355286]
[1757817362488,0.83361286,246.51,246.44,6.47]
[1757817363798,0.83361286,246.54,246.44,6.47]
[1757817363996,0.83361286,246.55,246.44,6.47]
[1757817364398,0.83361286,246.52,246.44,10.90355286]
[1757817364598,7.80361286,246.49,246.44,6.47]
[1757817364794,7.80361286,246.49,246.42,6.47]
[1757817365499,0.83361286,246.49,246.42,6.47]
[1757817366294,7.80361286,246.49,246.42,6.47]
[1757817367696,6.97,246.49,246.42,6.47]
[1757817367997,0.83361286,246.48,246.42,6.47]
[1757817368991,0.83361286,246.48,246.43,4.43355286]
[1757817369891,0.83361286,246.48,246.44,6.47]
[1757817370091,0.83361286,246.48,246.43,4.43355286]
[1757817370298,0.83361286,246.49,246.44,6.47]
[1757817370890,0.83361286,246.49,246.43,10.90355286]
[1757817373602,0.83361286,246.49,246.46,4.43355286]
[1757817373801,6.97,246.6,246.47,6.47]
[1757817374104,0.83361286,246.57,246.51,4.43355286]
[1757817374403,0.83361286,246.54,246.48,6.47]
[1757817374998,0.83361286,246.51,246.46,4.43355286]
[1757817375197,0.83361286,246.51,246.46,10.90355286]
[1757817375405,0.83361286,246.51,246.47,6.47]
[1757817375807,0.83361286,246.51,246.46,4.43355286]
[1757817376012,0.83361286,246.51,246.47,6.47]
[1757817376308,6.97,246.55,246.47,6.47]
[1757817376497,6.97,246.49,246.44,4.43355286]
[1757817376701,0.83361286,246.5,246.44,4.43355286]
[1757817376906,0.83361286,246.5,246.45,6.47]
[1757817377304,0.83361286,246.5,246.44,4.43355286]
[1757817377604,6.97,246.46,246.43,4.43355286]
[1757817378005,6.97,246.54,246.41,4.43355286]
[1757817378209,0.83361286,246.43,246.41,4.43355286]
[1757817378705,6.97,246.42,246.35,4.43355286]
[1757817378915,0.83361286,246.38,246.34,4.43355286]
[1757817379104,0.83361286,246.35,246.34,6.47]
[1757817379408,0.83361286,246.38,246.34,6.47]
[1757817379605,0.83361286,246.35,246.3,4.43355286]
[1757817379804,0.83361286,246.35,246.29,10.90355286]
[1757817380198,0.83361286,246.35,246.29,6.47]
[1757817380509,0.83361286,246.41,246.34,6.47]
[1757817380704,32.64,246.46,246.34,6.47]
[1757817380705,0.83361286,246.43,246.34,10.90355286]
[1757817380903,63.7,246.49,246.34,6.47]
[1757817380904,0.83361286,246.4,246.34,6.47]
[1757817381311,0.83361286,246.37,246.29,23.31314744]
[1757817382008,0.83361286,246.4,246.3,6.47]
[1757817382211,0.83361286,246.42,246.3,6.47]
[1757817382610,0.83361286,246.42,246.3,7.30361286]
[1757817383402,6.97,246.45,246.3,5.26716572]
[1757817383605,0.83361286,246.43,246.32,6.47]
[1757817384420,8.27385577,246.45,246.32,6.47]
[1757817384710,1.30385577,246.45,246.32,6.47]
[1757817384916,1.30385577,246.45,246.34,10.90355286]
[1757817385115,1.30385577,246.49,246.35,6.47]
[1757817385418,1.30385577,246.49,246.38,6.47]
[1757817385618,6.97,246.5,246.38,6.47]
[1757817385809,6.97,246.5,246.38,10.90355286]
[1757817386115,6.97,246.5,246.39,6.47]
[1757817386313,272.48,246.51,246.39,6.47]
[1757817387117,272.48,246.51,246.39,10.90355286]
[1757817387319,272.48,246.51,246.42,6.47]
[1757817387518,1.30385577,246.52,246.42,6.47]
[1757817387918,8.27385577,246.54,246.42,6.47]
[1757817388519,6.61,246.49,246.38,4.43355286]
[1757817388717,6.61,246.49,246.37,11.01355286]
[1757817389520,103.12,246.55,246.34,11.01355286]
[1757817389521,6.61,246.45,246.34,11.01355286]
[1757817389722,25.79,246.45,246.34,11.01355286]
[1757817389919,1.30385577,246.42,246.34,6.58]
[1757817390520,33.59,246.45,246.34,6.58]
[1757817390723,6.61,246.45,246.34,6.58]
[1757817390918,15.57,246.45,246.34,6.58]
[1757817391317,6.61,246.45,246.34,6.58]
[1757817391726,14.17,246.45,246.34,6.58]
[1757817392221,16.72,246.44,246.34,6.58]
[1757817392427,6.61,246.43,246.29,23.42314744]
[1757817392623,7.91385577,246.4,246.29,11.01355286]
[1757817392825,7.91385577,246.4,246.29,6.58]
[1757817393430,6.61,246.4,246.29,6.58]
[1757817394427,6.61,246.36,246.27,23.19622509]
[1757817394627,23.56,246.35,246.27,23.19622509]
[1757817394926,65.82,246.35,246.27,23.19622509]
[1757817395127,6.61,246.37,246.27,29.77622509]
[1757817395333,7.91385577,246.37,246.27,23.19622509]
[1757817395531,103.76,246.38,246.27,23.19622509]
[1757817395532,1.30385577,246.33,246.27,23.19622509]
[1757817395732,6.61,246.36,246.27,23.19622509]
[1757817395930,1.30385577,246.33,246.27,23.19622509]
[1757817396335,1.30385577,246.29,246.27,23.19622509]
[1757817396536,6.61,246.28,246.27,23.19622509]
[1757817399435,110.49,246.28,246.27,23.19622509]
[1757817401340,110.41,246.28,246.27,23.19622509]
[1757817403137,110.81,246.28,246.27,23.19622509]
[1757817403539,110.31,246.28,246.27,23.19622509]
[1757817404742,110.71,246.28,246.27,23.19622509]
[1757817407446,110.71,246.28,246.1,6.58]
[1757817407640,6.61,246.23,246.1,6.58]
[1757817407840,20.12,246.22,246.1,6.58]
[1757817410546,7.91385577,246.23,246.1,6.58]
[1757817410748,60.62,246.22,246.1,6.58]
[1757817411148,7.91385577,246.23,246.1,6.58]
[1757817411345,98.64,246.22,246.1,6.58]
[1757817411546,6.91,246.21,246.1,6.58]
[1757817411741,8.21385577,246.21,246.1,6.58]
[1757817412347,103.54,246.2,246.1,6.58]
[1757817412650,103.54,246.19,246.1,6.58]
[1757817412840,103.54,246.18,246.1,6.58]
[1757817413044,103.52,246.18,246.1,6.58]
[1757817413741,6.91,246.23,246.1,6.58]
[1757817413941,1.30385577,246.16,246.04,6.73]
[1757817414146,6.91,246.08,245.91,6.73]
[1757817414344,37.84,246.07,245.91,6.73]
[1757817414549,37.84,246.07,245.91,7.43744648]
[1757817415250,37.84,246.07,245.91,19.36150808]
[1757817416152,6.91,246.08,245.91,12.63150808]
[1757817416353,1.30385577,246.06,245.92,6.73]
[1757817417256,49.52,246.05,245.92,6.73]
[1757817417856,6.91,246.08,245.92,6.73]
[1757817418156,1.30385577,246.12,245.96,6.78]
[1757817418157,8.26,246.09,245.96,6.78]
[1757817418354,11.72,246.09,245.96,6.78]
[1757817418558,15.0,246.1,245.96,6.78]
[1757817418757,1.30385577,246.12,245.96,6.78]
[1757817418952,20.78,246.1,245.96,6.78]
[1757817419158,27.34,246.12,245.96,6.78]
[1757817419759,27.34,246.12,245.96,8.08385577]
[1757817419951,6.45,246.13,245.96,8.08385577]
[1757817420160,7.75385577,246.18,246.01,6.78]
[1757817420357,43.42,246.17,246.01,6.78]
[1757817420756,6.45,246.18,246.01,6.78]
[1757817420757,89.99,246.18,246.02,1.30385577]
[1757817421156,89.99,246.18,246.03,6.78]
[1757817421356,1.30385577,246.16,246.03,6.78]
[1757817421756,103.94,246.17,246.03,6.78]
[1757817422460,1.30385577,246.14,246.03,6.78]
[1757817422860,105.42385577,246.14,246.03,6.78]
[1757817423059,6.45,246.13,246.03,6.78]
[1757817423956,12.12,246.27,246.03,6.78]
[1757817423957,33.42,246.16,246.03,6.78]
[1757817424165,33.46,246.17,246.03,6.78]
[1757817424359,6.45,246.18,246.03,6.78]
[1757817425061,6.45,246.18,245.92,13.79355286]
[1757817425062,6.45,246.18,246.06,6.78]
[1757817426260,6.45,246.27,246.06,6.78]
[1757817426461,1.30385577,246.22,246.06,6.78]
[1757817426763,1.30385577,246.26,246.1,6.78]
[1757817427755,1.30385577,246.3,246.14,6.78]
[1757817428064,6.45,246.32,246.14,6.78]
[1757817428560,6.45,246.41,246.19,1.30385577]
[1757817428761,6.45,246.41,246.24,6.78]
[1757817429064,6.45,246.41,246.26,6.78]
[1757817429255,7.75385577,246.46,246.29,6.78]
[1757817429458,7.75385577,246.46,246.28,1.30385577]
[1757817429459,1.30385577,246.42,246.28,6.78]
[1757817429762,1.30385577,246.39,246.28,6.78]
[1757817430361,6.45,246.41,246.28,6.78]
[1757817430968,6.45,246.48,246.28,6.78]
[1757817431666,6.45,246.48,246.29,6.78]
[1757817432067,6.45,246.53,246.29,6.78]
[1757817432668,6.45,246.53,246.31,6.78]
[1757817433371,3.52,246.65,246.37,6.78]
[1757817433572,6.45,246.64,246.37,6.78]
[1757817433969,6.45,246.64,246.38,104.56]
[1757817434268,6.45,246.66,246.37,6.78]
[1757817434667,6.45,246.66,246.39,6.78]
[1757817435869,104.5,246.66,246.4,104.44]
[1757817436065,3.43204127,246.62,246.41,111.22]
[1757817436270,3.43204127,246.62,246.41,93.32]
[1757817436465,6.45,246.61,246.41,85.0]
[1757817436665,6.45,246.61,246.41,6.78]
[1757817437672,49.26,246.6,246.41,6.78]
[1757817437970,6.45,246.59,246.41,6.78]
[1757817441470,3.43204127,246.67,246.41,6.78]
[1757817441671,272.8,246.71,246.42,6.78]
[1757817441672,6.45,246.66,246.42,6.78]
[1757817444365,6.45,246.66,246.45,2.16949605]
[1757817444670,6.45,246.66,246.46,6.78]
[1757817444973,6.45,246.66,246.48,6.78]
[1757817446374,6.45,246.76,246.51,6.78]
[1757817447077,6.45,246.76,246.53,6.78]
[1757817447477,6.45,246.76,246.56,6.78]
[1757817448074,6.45,246.76,246.57,57.88]
[1757817448379,6.45,246.76,246.58,6.95]
[1757817448882,272.52,246.86,246.6,2.16949605]
[1757817449074,8.59949605,246.85,246.61,6.95]
[1757817449571,6.43,246.85,246.66,6.95]
[1757817452487,6.43,246.85,246.67,13.9]
[1757817452685,6.43,246.85,246.68,6.44]
[1757817453287,6.43,246.85,246.7,2.16949605]
[1757817453481,6.43,246.85,246.71,6.44]
[1757817454089,6.43,246.85,246.72,46.22]
[1757817454588,6.43,246.85,246.71,6.44]
[1757817454777,6.43,246.85,246.72,44.26]
[1757817454979,6.43,246.85,246.72,97.02]
[1757817455486,6.43,246.85,246.71,18.36306545]
[1757817455991,6.43,246.85,246.71,51.34071337]
[1757817456285,6.43,246.85,246.71,6.44]
[1757817456784,6.55,246.85,246.66,278.78]
[1757817456977,6.55,246.8,246.66,311.01881423]
[1757817457183,2.16949605,246.81,246.66,272.34]
[1757817457487,6.55,246.8,246.66,272.34]
[1757817457687,6.55,246.8,246.66,284.68724543]
[1757817457993,6.55,246.75,246.66,12.34724543]
[1757817458189,6.55,246.75,246.6,6.44]
[1757817458391,6.55,246.81,246.61,6.44]
[1757817459688,2.16949605,246.77,246.61,18.46149207]
[1757817459884,6.55,246.76,246.61,6.44]
[1757817460991,6.55,246.76,246.53,6.44]
[1757817461193,6.55,246.76,246.55,44.28]
[1757817461596,2.16949605,246.77,246.55,44.28]
[1757817461791,6.55,246.76,246.56,6.44]
[1757817462392,6.55,246.71,246.56,6.44]
[1757817464394,6.55,246.66,246.53,11.95850427]
[1757817464696,6.55,246.61,246.44,6.44]
[1757817466392,6.55,246.61,246.45,6.44]
[1757817467192,2.16949605,246.72,246.45,6.44]
[1757817467193,2.16949605,246.67,246.46,2.16949605]
[1757817467396,6.55,246.67,246.47,6.44]
[1757817468897,6.55,246.64,246.47,6.44]
[1757817471095,6.55,246.71,246.52,6.44]
[1757817471593,2.16949605,246.68,246.52,6.44]
[1757817471792,6.55,246.67,246.52,6.44]
[1757817474501,6.49,246.62,246.45,6.44]
[1757817475097,6.49,246.67,246.47,6.44]
[1757817476306,6.49,246.72,246.52,6.44]
[1757817477708,6.49,246.72,246.57,7.01]
[1757817482810,6.7,246.77,246.59,2.16949605]
[1757817483009,59.11445431,246.81,246.64,2.16949605]
[1757817483311,6.7,246.82,246.65,7.01]
[1757817484208,2.16949605,246.8,246.65,7.01]
[1757817484415,6.7,246.79,246.65,7.01]
[1757817485614,6.7,246.79,246.56,37.47017582]
[1757817485816,6.7,246.74,246.58,7.01]
[1757817488517,6.7,246.74,246.59,7.01]
[1757817490615,6.7,246.79,246.62,7.01]
[1757817491520,6.7,246.79,246.58,4.43355286]
[1757817491720,6.7,246.79,246.56,4.43355286]
[1757817492016,6.7,246.77,246.58,7.01]
[1757817495218,6.7,246.77,246.58,4.43355286]
[1757817495418,6.7,246.77,246.59,7.01]
[1757817496323,6.7,246.77,246.59,4.43355286]
[1757817496524,6.7,246.77,246.6,7.01]
[1757817496820,6.7,246.77,246.6,4.43355286]
[1757817497124,6.7,246.77,246.64,7.01]
[1757817497526,6.7,246.84,246.65,4.43355286]
[1757817497825,6.7,246.84,246.66,7.01]
[1757817499323,43.7,246.85,246.66,11.44355286]
[1757817499527,6.7,246.84,246.66,11.44355286]
[1757817501030,43.7,246.85,246.66,11.44355286]
[1757817501428,6.7,246.84,246.66,11.44355286]
[1757817501628,6.7,246.84,246.67,4.43355286]
[1757817502328,6.7,246.84,246.66,11.44355286]
[1757817502524,44.06,246.85,246.66,11.44355286]
[1757817502722,6.7,246.83,246.66,11.44355286]
[1757817502922,103.96,246.84,246.66,11.44355286]
[1757817503125,6.7,246.83,246.66,11.44355286]
[1757817503329,103.96,246.84,246.66,11.44355286]
[1757817503530,6.7,246.83,246.66,11.44355286]
[1757817504228,103.96,246.84,246.66,11.44355286]
[1757817504429,6.7,246.83,246.66,11.44355286]
[1757817504729,103.96,246.84,246.66,11.44355286]
[1757817504930,6.7,246.83,246.66,11.44355286]
[1757817506434,103.96,246.84,246.66,11.44355286]
[1757817507327,6.7,246.83,246.66,7.01]
[1757817511333,6.84,246.83,246.66,11.44355286]
[1757817511531,6.84,246.83,246.66,7.01]
[1757817512128,6.84,246.83,246.7,6.73]
[1757817513334,6.84,246.83,246.7,11.16355286]
[1757817514038,6.84,246.83,246.7,6.73]
[1757817514437,6.84,246.83,246.67,4.43355286]
[1757817514634,3.42021645,246.87,246.62,4.43355286]
[1757817514635,6.84,246.81,246.62,4.43355286]
[1757817514838,6.84,246.81,246.62,6.73]
[1757817515033,23.46,246.8,246.62,6.73]
[1757817515238,6.84,246.79,246.63,4.43355286]
[1757817515439,6.84,246.79,246.64,6.73]
[1757817517538,6.84,246.79,246.63,4.43355286]
[1757817517737,6.84,246.76,246.6,11.16355286]
[1757817517932,6.84,246.76,246.45,11.08388216]
[1757817517933,3.42021645,246.72,246.57,4.43355286]
[1757817518136,6.84,246.71,246.56,4.43355286]
[1757817520037,6.84,246.71,246.57,4.43355286]
[1757817520338,6.84,246.71,246.56,4.43355286]
[1757817521541,23.58,246.71,246.56,4.43355286]
[1757817522036,6.84,246.71,246.58,4.43355286]
[1757817522244,6.84,246.71,246.59,11.16355286]
[1757817522443,6.84,246.71,246.59,6.73]
[1757817523035,6.84,246.71,246.55,4.43355286]
[1757817523240,6.84,246.71,246.54,11.16355286]
[1757817523640,3.42021645,246.72,246.54,11.16355286]
[1757817523843,6.84,246.71,246.55,4.43355286]
[1757817524246,6.84,246.71,246.54,11.16355286]
[1757817524548,6.84,246.71,246.56,11.16355286]
[1757817524745,6.84,246.71,246.57,11.16355286]
[1757817526450,29.58,246.74,246.57,4.43355286]
[1757817526651,6.84,246.73,246.55,4.43355286]
[1757817526852,6.84,246.73,246.54,4.43355286]
[1757817527148,6.84,246.73,246.55,6.73]
[1757817528151,3.42021645,246.7,246.55,6.73]
[1757817528352,6.84,246.69,246.55,6.73]
[1757817529661,6.84,246.69,246.55,4.43355286]
[1757817529958,6.84,246.69,246.56,6.73]
[1757817531155,6.84,246.69,246.57,6.73]
[1757817533363,6.84,246.69,246.58,6.37]
[1757817535361,272.3,246.75,246.58,6.37]
[1757817535666,6.85,246.74,246.58,6.37]
[1757817536759,272.3,246.75,246.58,6.37]
[1757817536964,6.85,246.78,246.61,4.50503042]
[1757817537163,6.85,246.78,246.62,6.37]
[1757817537562,6.85,246.78,246.63,6.37]
[1757817539768,6.85,246.78,246.63,10.87503042]
[1757817540558,6.85,246.78,246.63,4.50503042]
[1757817540771,6.85,246.78,246.64,6.74]
[1757817552380,1.3005063,246.77,246.64,6.74]
[1757817553478,1.3005063,246.77,246.64,11.24503042]
[1757817553672,1.3005063,246.77,246.65,4.50503042]
[1757817554275,1.3005063,246.77,246.65,6.74]
[1757817554569,1.3005063,246.77,246.65,11.24503042]
[1757817554776,6.85,246.78,246.66,6.74]
[1757817554974,6.85,246.78,246.67,4.50503042]
[1757817555378,6.85,246.78,246.68,6.74]
[1757817557377,1.3005063,246.81,246.68,6.74]
[1757817557583,1.3005063,246.81,246.7,6.74]
[1757817557777,6.62,246.82,246.7,11.24503042]
[1757817557977,6.62,246.82,246.71,6.74]
[1757817559381,1.3005063,246.81,246.67,11.24503042]
[1757817559585,1.3005063,246.73,246.66,4.50503042]
[1757817559790,6.62,246.72,246.66,4.50503042]
[1757817560085,6.62,246.72,246.64,4.50503042]
[1757817560285,6.62,246.72,246.63,11.24503042]
[1757817560683,6.62,246.72,246.63,6.74]
[1757817562881,6.62,246.72,246.6,4.50503042]
[1757817563382,6.62,246.72,246.59,11.24503042]
[1757817563580,6.62,246.72,246.59,6.74]
[1757817563780,6.62,246.68,246.59,6.74]
[1757817564377,6.62,246.68,246.55,4.50503042]
[1757817564681,6.62,246.68,246.54,11.24503042]
[1757817564888,6.62,246.68,246.55,4.50503042]
[1757817565782,1.3005063,246.72,246.54,6.74]
[1757817565783,1.3005063,246.72,246.57,4.50503042]
[1757817566079,1.3005063,246.72,246.61,6.74]
[1757817566479,6.62,246.71,246.61,6.74]
[1757817566676,6.62,246.67,246.56,11.24503042]
[1757817566884,6.62,246.67,246.56,6.74]
[1757817567487,7.9205063,246.64,246.56,6.74]
[1757817568279,6.55,246.69,246.56,6.74]
[1757817568482,6.55,246.69,246.58,6.38]
[1757817568678,6.55,246.69,246.59,6.38]
[1757817568887,6.55,246.69,246.6,0.83286995]
[1757817569089,7.38286995,246.73,246.61,6.38]
[1757817570086,7.38286995,246.73,246.61,10.88503042]
[1757817570290,6.55,246.73,246.64,6.38]
[1757817571385,6.55,246.73,246.64,7.21286995]
[1757817571886,6.55,246.73,246.64,11.71790037]
[1757817573795,7.38286995,246.78,246.68,6.38]
[1757817574092,6.55,246.74,246.64,0.83286995]
[1757817574692,6.55,246.71,246.63,6.38]
[1757817577594,0.83286995,246.75,246.64,5.33790037]
[1757817577894,0.83286995,246.75,246.65,6.38]
[1757817580596,6.55,246.71,246.64,4.50503042]
[1757817580801,0.83286995,246.69,246.6,10.88503042]
[1757817582491,6.55,246.71,246.61,6.38]
[1757817582697,0.83286995,246.72,246.63,4.50503042]
[1757817584400,0.83286995,246.72,246.62,4.50503042]
[1757817586002,0.83286995,246.73,246.63,10.88503042]
[1757817586204,0.83286995,246.73,246.64,4.50503042]
[1757817586801,0.83286995,246.73,246.65,6.38]
[1757817587001,6.55,246.86,246.65,6.38]
[1757817587204,7.38286995,246.76,246.65,10.88503042]
[1757817587404,0.83286995,246.73,246.65,10.88503042]
[1757817589500,7.38286995,246.76,246.66,6.38]
[1757817591404,0.83286995,246.73,246.66,6.38]
[1757817592695,6.51,246.72,246.63,4.50503042]
[1757817592895,6.51,246.72,246.62,11.54503042]
[1757817593300,6.51,246.72,246.63,7.04]
[1757817593505,6.51,246.78,246.63,11.54503042]
[1757817593705,0.83286995,246.74,246.63,11.54503042]
[1757817593906,0.83286995,246.74,246.64,4.50503042]
[1757817595002,0.83286995,246.74,246.65,7.04]
[1757817595809,0.83286995,246.71,246.65,7.04]
[1757817596008,0.83286995,246.71,246.61,6.75754563]
[1757817596009,6.51,246.7,246.61,4.50503042]